{"text_format":"1","workbook":"xlsx","n_sheets":16,"sheets":["Val","Beräkningar","Sid 1","Analysinstrument","Ventilation 1","Ventilation 2","Ventilation 3","Ventilation 4","Ventilation 5","Restgas","Utsläpp år 1","Utsläpp år 2","Utsläpp h 1","Utsläpp h 2","Bilaga","EgMet protokoll"],"not_rendered":{"charts":0,"images":2,"macros":1,"external_links":0,"defined_names":2,"comments":2,"pivot_tables":0},"unopened":[],"bounds":{"document_bytes":16777216,"sheet_cells":100000,"rows_first":2000,"rows_last":500,"rows_between":2000,"halvings":0,"cell_chars":16384,"cell_head_chars":4096},"cells_cut":0,"cells_raw":0,"read":"whole","date_system":"1900"}

{"sheet":"Val","index":0,"n_rows":22,"n_cols":4,"rows_kept":22,"cut":false,"hidden":false,"merged":[]}
[]
[null,"Uppgraderingsanläggning"]
[]
[null,"De utsläppskällor som har uppmätts ges en identifikation i listan:"]
[]
[null,"Utsläppskällor","Val","Array"]
[null,"Analysinstrument","Fast installerade analysinstrument",{"$f":"IF(C7<>\"\",1,0)","v":1}]
[null,"Ventilation 1",null,0]
[null,"Ventilation 2",null,0]
[null,"Ventilation 3",null,0]
[null,"Ventilation 4",null,0]
[null,"Ventilation 5",null,0]
[null,"Restgas","Restgas",1]
[null,"Utsläpp (Nm3/år) 1",null,0]
[null,"Utsläpp (Nm3/år) 2",null,0]
[null,"Utsläpp (Nm3/h) 1",null,0]
[null,"Utsläpp (Nm3/h) 2",null,0]
[]
[]
[]
[]
[null,"Utskrift"]

{"sheet":"Beräkningar","index":1,"n_rows":227,"n_cols":10,"rows_kept":227,"cut":false,"hidden":false,"merged":[]}
["indata och konstanter",null,null,null,"UPPGRADERINGSANLÄGGNING",null,null,null,null,"vers. 2.0"]
["beräknade data (kan vid behov skrivas över)"]
["slutresultat"]
[]
["PRODUKTIONSDATA",null,null,null,"RÅGAS",null,"RENGAS",null,"RÅGAS ber","CO2 ber"]
["Q (gasflöde)","Nm3/h",null,null,null,null,null,null,{"$f":"G6*G7/100/E7*100","v":{"$error":"#DIV/0!"}},{"$f":"(100-E7)/100*I6","v":{"$error":"#DIV/0!"}}]
["CH4 (metanhalt)","vol-%"]
["Momentant metanflöde","Nm3 CH4/h",null,null,{"$f":"E6*E7/100","v":0},null,{"$f":"G6*G7/100","v":0}]
["Årsflöde gas","Nm3/år"]
["Metanhalt årsmedel","vol-%"]
["Totalt genomflöde","Nm3 CH4/år",null,null,{"$f":"E9*E10/100","v":0},null,{"$f":"G9*G10/100","v":0}]
["Drifttimmar per år","h/år"]
[]
["FÖRLUSTER",null,null,null,"RÅGAS",null,"RENGAS"]
["Momentan förlust","Nm3 CH4/h",null,null,{"$f":"C26*Val!D7+C50*Val!D8+C74*Val!D9+C98*Val!D10+C122*Val!D11+C146*Val!D12+C170*Val!D13+E182*Val!D14+E194*Val!D15+C206*Val!D16+C218*Val!D17","v":0},null,{"$f":"C26*Val!D7+C50*Val!D8+C74*Val!D9+C98*Val!D10+C122*Val!D11+C146*Val!D12+C170*Val!D13+G182*Val!D14+G194*Val!D15+C206*Val!D16+C218*Val!D17","v":0},null,"Uppdatera formeln i E15 och G15 om fler utsläppspunkter läggs till manuellt"]
["Momentan förlust","%",null,null,{"$f":"E15/$E$8*100","v":{"$error":"#DIV/0!"}},null,{"$f":"G15/($G$8+G15)*100","v":{"$error":"#DIV/0!"}}]
["Årlig förlust","Nm3 CH4/år",null,null,{"$f":"C30*Val!D7+E54*Val!D8+E78*Val!D9+E102*Val!D10+E126*Val!D11+E150*Val!D12+E174*Val!D13+E186*Val!D14+E198*Val!D15+E210*Val!D16+E222*Val!D17","v":0},null,{"$f":"C30*Val!D7+G54*Val!D8+G78*Val!D9+G102*Val!D10+G126*Val!D11+G150*Val!D12+G174*Val!D13+G186*Val!D14+G198*Val!D15+G210*Val!D16+G222*Val!D17","v":0},null,"Uppdatera formeln i E17 och G17 om fler utsläppspunkter läggs till manuellt"]
["Årlig förlust","%",null,null,{"$f":"E17/$E$11*100","v":{"$error":"#DIV/0!"}},null,{"$f":"G17/($G$11+G17)*100","v":{"$error":"#DIV/0!"}}]
[]
["ANALYSINSTRUMENT",{"$f":"Val!C7","v":"Fast installerade analysinstrument"}]
["INDATA"]
["Qutsläpp Rågas","lpm (l/min)"]
["Qutsläpp Rengas","lpm (l/min)"]
["RESULTAT"]
["Qutsläpp","l/h",{"$f":"C22*60+C23*60","v":0}]
["Momentant utsläpp","Nm3 CH4/h",{"$f":"$E$7/100*C22*60/1000+$G$7/100*C23*60/1000","v":0},null,"RÅGAS",null,"RENGAS"]
["Momentant metanflöde","Nm3 CH4/h",null,null,{"$f":"$E$8","v":0},null,{"$f":"$G$8+$G$15","v":0}]
["Momentan förlust","%",null,null,{"$f":"100*C26/$E$8","v":{"$error":"#DIV/0!"}},null,{"$f":"100*C26/($G$8+$G$15)","v":{"$error":"#DIV/0!"}}]
["ÅRSVÄRDEN"]
["Årligt utsläpp","Nm3 CH4/år",{"$f":"($E$10/100*C22*60/1000+$G$10/100*C23*60/1000)*$E$12","v":0}]
["Årligt metanflöde","Nm3 CH4/år",null,null,{"$f":"$E$11","v":0},null,{"$f":"$G$11+$G$17","v":0}]
["Årlig förlust","%",null,null,{"$f":"100*C30/E31","v":{"$error":"#DIV/0!"}},null,{"$f":"100*C30/G31","v":{"$error":"#DIV/0!"}}]
[]
["VENTILATION 1",{"$f":"Val!C8","v":0}]
["INDATA"]
["CH4(utsläpp)","ppm"]
["Tutsläpp","ºC"]
["Differenstryck, pd","Pa"]
["Rör diameter","cm"]
["KONSTANTER"]
["putsläpp","kPa",101.3]
["Luft densitet","kg/Nm3",1.29]
["RESULTAT"]
["Luft densitet","kg/m3",{"$f":"C42*C41/101.3*273.15/(273.15+C37)","v":1.29}]
["Rör area","m2",{"$f":"(C39/100)^2*0.25*PI()","v":0}]
["Gashastighet","m/s",{"$f":"SQRT(2*C38/C44)","v":0}]
["Qutsläpp","l/s",{"$f":"C45*C46*1000","v":0}]
["Qutsläpp","m3/h",{"$f":"C47/1000*60*60","v":0}]
["Qutsläpp","Nm3/h",{"$f":"C48*C41/101.3*273.15/(273.15+C37)","v":0}]
["Momentant utsläpp","Nm3 CH4/h",{"$f":"C49*C36/1000000","v":0},null,"RÅGAS",null,"RENGAS"]
["Momentant metanflöde","Nm3 CH4/h",null,null,{"$f":"$E$8","v":0},null,{"$f":"$G$8+$G$15","v":0}]
["Momentan förlust","%",null,null,{"$f":"100*C50/$E$8","v":{"$error":"#DIV/0!"}},null,{"$f":"100*C50/($G$8+$G$15)","v":{"$error":"#DIV/0!"}}]
["ÅRSVÄRDEN","Skalning:"]
["Årligt utsläpp","Nm3 CH4/år",null,null,{"$f":"IF(C53=\"p\",E52/100*E55,IF(C53=\"h\",C50*$E$12,0))","v":0},null,{"$f":"IF(C53=\"p\",G52/100*G55,IF(C53=\"h\",C50*$E$12,0))","v":0}]
["Årligt metanflöde","Nm3 CH4/år",null,null,{"$f":"$E$11","v":0},null,{"$f":"$G$11+$G$17","v":0}]
["Årlig förlust","%",null,null,{"$f":"100*E54/E55","v":{"$error":"#DIV/0!"}},null,{"$f":"100*G54/G55","v":{"$error":"#DIV/0!"}}]
[]
["VENTILATION 2",{"$f":"Val!C9","v":0}]
["INDATA"]
["CH4(utsläpp)","ppm"]
["Tutsläpp","ºC"]
["Differenstryck, pd","Pa"]
["Rör diameter","cm"]
["KONSTANTER"]
["putsläpp","kPa",101.3]
["Luft densitet","kg/Nm3",1.29]
["RESULTAT"]
["Luft densitet","kg/m3",{"$f":"C66*C65/101.3*273.15/(273.15+C61)","v":1.29}]
["Rör area","m2",{"$f":"(C63/100)^2*0.25*PI()","v":0}]
["Gashastighet","m/s",{"$f":"SQRT(2*C62/C68)","v":0}]
["Qutsläpp","l/s",{"$f":"C69*C70*1000","v":0}]
["Qutsläpp","m3/h",{"$f":"C71/1000*60*60","v":0}]
["Qutsläpp","Nm3/h",{"$f":"C72*C65/101.3*273.15/(273.15+C61)","v":0}]
["Momentant utsläpp","Nm3 CH4/h",{"$f":"C73*C60/1000000","v":0},null,"RÅGAS",null,"RENGAS"]
["Momentant metanflöde","Nm3 CH4/h",null,null,{"$f":"$E$8","v":0},null,{"$f":"$G$8+$G$15","v":0}]
["Momentan förlust","%",null,null,{"$f":"100*C74/$E$8","v":{"$error":"#DIV/0!"}},null,{"$f":"100*C74/($G$8+$G$15)","v":{"$error":"#DIV/0!"}}]
["ÅRSVÄRDEN","Skalning:"]
["Årligt utsläpp","Nm3 CH4/år",null,null,{"$f":"IF(C77=\"p\",E76/100*E79,IF(C77=\"h\",C74*$E$12,0))","v":0},null,{"$f":"IF(C77=\"p\",G76/100*G79,IF(C77=\"h\",C74*$E$12,0))","v":0}]
["Årligt metanflöde","Nm3 CH4/år",null,null,{"$f":"$E$11","v":0},null,{"$f":"$G$11+$G$17","v":0}]
["Årlig förlust","%",null,null,{"$f":"100*E78/E79","v":{"$error":"#DIV/0!"}},null,{"$f":"100*G78/G79","v":{"$error":"#DIV/0!"}}]
[]
["VENTILATION 3",{"$f":"Val!C10","v":0}]
["INDATA"]
["CH4(utsläpp)","ppm"]
["Tutsläpp","ºC"]
["Differenstryck, pd","Pa"]
["Rör diameter","cm"]
["KONSTANTER"]
["putsläpp","kPa",101.3]
["Luft densitet","kg/Nm3",1.29]
["RESULTAT"]
["Luft densitet","kg/m3",{"$f":"C90*C89/101.3*273.15/(273.15+C85)","v":1.29}]
["Rör area","m2",{"$f":"(C87/100)^2*0.25*PI()","v":0}]
["Gashastighet","m/s",{"$f":"SQRT(2*C86/C92)","v":0}]
["Qutsläpp","l/s",{"$f":"C93*C94*1000","v":0}]
["Qutsläpp","m3/h",{"$f":"C95/1000*60*60","v":0}]
["Qutsläpp","Nm3/h",{"$f":"C96*C89/101.3*273.15/(273.15+C85)","v":0}]
["Momentant utsläpp","Nm3 CH4/h",{"$f":"C97*C84/1000000","v":0},null,"RÅGAS",null,"RENGAS"]
["Momentant metanflöde","Nm3 CH4/h",null,null,{"$f":"$E$8","v":0},null,{"$f":"$G$8+$G$15","v":0}]
["Momentan förlust","%",null,null,{"$f":"100*C98/$E$8","v":{"$error":"#DIV/0!"}},null,{"$f":"100*C98/($G$8+$G$15)","v":{"$error":"#DIV/0!"}}]
["ÅRSVÄRDEN","Skalning:"]
["Årligt utsläpp","Nm3 CH4/år",null,null,{"$f":"IF(C101=\"p\",E100/100*E103,IF(C101=\"h\",C98*$E$12,0))","v":0},null,{"$f":"IF(C101=\"p\",G100/100*G103,IF(C101=\"h\",C98*$E$12,0))","v":0}]
["Årligt metanflöde","Nm3 CH4/år",null,null,{"$f":"$E$11","v":0},null,{"$f":"$G$11+$G$17","v":0}]
["Årlig förlust","%",null,null,{"$f":"100*E102/E103","v":{"$error":"#DIV/0!"}},null,{"$f":"100*G102/G103","v":{"$error":"#DIV/0!"}}]
[]
["VENTILATION 4",{"$f":"Val!C11","v":0}]
["INDATA"]
["CH4(utsläpp)","ppm"]
["Tutsläpp","ºC"]
["Differenstryck, pd","Pa"]
["Rör diameter","cm"]
["KONSTANTER"]
["putsläpp","kPa",101.3]
["Luft densitet","kg/Nm3",1.29]
["RESULTAT"]
["Luft densitet","kg/m3",{"$f":"C114*C113/101.3*273.15/(273.15+C109)","v":1.29}]
["Rör area","m2",{"$f":"(C111/100)^2*0.25*PI()","v":0}]
["Gashastighet","m/s",{"$f":"SQRT(2*C110/C116)","v":0}]
["Qutsläpp","l/s",{"$f":"C117*C118*1000","v":0}]
["Qutsläpp","m3/h",{"$f":"C119/1000*60*60","v":0}]
["Qutsläpp","Nm3/h",{"$f":"C120*C113/101.3*273.15/(273.15+C109)","v":0}]
["Momentant utsläpp","Nm3 CH4/h",{"$f":"C121*C108/1000000","v":0},null,"RÅGAS",null,"RENGAS"]
["Momentant metanflöde","Nm3 CH4/h",null,null,{"$f":"$E$8","v":0},null,{"$f":"$G$8+$G$15","v":0}]
["Momentan förlust","%",null,null,{"$f":"100*C122/$E$8","v":{"$error":"#DIV/0!"}},null,{"$f":"100*C122/($G$8+$G$15)","v":{"$error":"#DIV/0!"}}]
["ÅRSVÄRDEN","Skalning:"]
["Årligt utsläpp","Nm3 CH4/år",null,null,{"$f":"IF(C125=\"p\",E124/100*E127,IF(C125=\"h\",C122*$E$12,0))","v":0},null,{"$f":"IF(C125=\"p\",G124/100*G127,IF(C125=\"h\",C122*$E$12,0))","v":0}]
["Årligt metanflöde","Nm3 CH4/år",null,null,{"$f":"$E$11","v":0},null,{"$f":"$G$11+$G$17","v":0}]
["Årlig förlust","%",null,null,{"$f":"100*E126/E127","v":{"$error":"#DIV/0!"}},null,{"$f":"100*G126/G127","v":{"$error":"#DIV/0!"}}]
[]
["VENTILATION 5",{"$f":"Val!C12","v":0}]
["INDATA"]
["CH4(utsläpp)","ppm"]
["Tutsläpp","ºC"]
["Differenstryck, pd","Pa"]
["Rör diameter","cm"]
["KONSTANTER"]
["putsläpp","kPa",101.3]
["Luft densitet","kg/Nm3",1.29]
["RESULTAT"]
["Luft densitet","kg/m3",{"$f":"C138*C137/101.3*273.15/(273.15+C133)","v":1.29}]
["Rör area","m2",{"$f":"(C135/100)^2*0.25*PI()","v":0}]
["Gashastighet","m/s",{"$f":"SQRT(2*C134/C140)","v":0}]
["Qutsläpp","l/s",{"$f":"C141*C142*1000","v":0}]
["Qutsläpp","m3/h",{"$f":"C143/1000*60*60","v":0}]
["Qutsläpp","Nm3/h",{"$f":"C144*C137/101.3*273.15/(273.15+C133)","v":0}]
["Momentant utsläpp","Nm3 CH4/h",{"$f":"C145*C132/1000000","v":0},null,"RÅGAS",null,"RENGAS"]
["Momentant metanflöde","Nm3 CH4/h",null,null,{"$f":"$E$8","v":0},null,{"$f":"$G$8+$G$15","v":0}]
["Momentan förlust","%",null,null,{"$f":"100*C146/$E$8","v":{"$error":"#DIV/0!"}},null,{"$f":"100*C146/($G$8+$G$15)","v":{"$error":"#DIV/0!"}}]
["ÅRSVÄRDEN","Skalning:"]
["Årligt utsläpp","Nm3 CH4/år",null,null,{"$f":"IF(C149=\"p\",E148/100*E151,IF(C149=\"h\",C146*$E$12,0))","v":0},null,{"$f":"IF(C149=\"p\",G148/100*G151,IF(C149=\"h\",C146*$E$12,0))","v":0}]
["Årligt metanflöde","Nm3 CH4/år",null,null,{"$f":"$E$11","v":0},null,{"$f":"$G$11+$G$17","v":0}]
["Årlig förlust","%",null,null,{"$f":"100*E150/E151","v":{"$error":"#DIV/0!"}},null,{"$f":"100*G150/G151","v":{"$error":"#DIV/0!"}}]
[]
["RESTGAS","Flöde:",null,null,{"$f":"Val!C13","v":"Restgas"}]
["INDATA"]
["CH4(utsläpp)","ppm"]
["Tutsläpp","ºC"]
["Differenstryck, pd","Pa"]
["Rör diameter","cm"]
["KONSTANTER"]
["putsläpp","kPa",101.3]
["Luft densitet","kg/Nm3",1.29]
["RESULTAT"]
["Luft densitet","kg/m3",{"$f":"C162*C161/101.3*273.15/(273.15+C157)","v":1.29}]
["Rör area","m2",{"$f":"(C159/100)^2*0.25*PI()","v":0}]
["Gashastighet","m/s",{"$f":"SQRT(2*C158/C164)","v":0}]
["Qutsläpp","l/s",{"$f":"C166*C165*1000","v":0}]
["Qutsläpp","m3/h",{"$f":"C167/1000*60*60","v":0}]
["Qutsläpp","Nm3/h",{"$f":"C168*C161/101.3*273.15/(273.15+C157)","v":0}]
["Momentant utsläpp","Nm3 CH4/h",{"$f":"IF(C154=\"u\",C169*C156/1000000,IF(C154=\"b\",$J$6*C156/1000000,0))","v":0},null,"RÅGAS",null,"RENGAS"]
["Momentant metanflöde","Nm3 CH4/h",null,null,{"$f":"$E$8","v":0},null,{"$f":"$G$8+$G$15","v":0}]
["Momentan förlust","%",null,null,{"$f":"C170/$E$8*100","v":{"$error":"#DIV/0!"}},null,{"$f":"C170/($G$8+$G$15)*100","v":{"$error":"#DIV/0!"}}]
["ÅRSVÄRDEN","Skalning:"]
["Årligt utsläpp","Nm3 CH4/år",null,null,{"$f":"IF(C173=\"p\",E172/100*E175,IF(C173=\"h\",C170*$E$12,0))","v":0},null,{"$f":"IF(C173=\"p\",G172/100*G175,IF(C173=\"h\",C170*$E$12,0))","v":0}]
["Årligt metanflöde","Nm3 CH4/år",null,null,{"$f":"$E$11","v":0},null,{"$f":"$G$11+$G$17","v":0}]
["Årlig förlust","%",null,null,{"$f":"100*E174/E175","v":{"$error":"#DIV/0!"}},null,{"$f":"100*G174/G175","v":{"$error":"#DIV/0!"}}]
[]
["UTSLÄPP (Nm3/år) 1",{"$f":"Val!C14","v":0}]
["INDATA"]
["Utsläpp","Nm3 CH4/år"]
["RESULTAT","Skalning:",null,null,"RÅGAS",null,"RENGAS"]
["Momentant utsläpp","Nm3 CH4/h",null,null,{"$f":"IF(C181=\"p\",E188/100*$E$8,IF(C181=\"h\",C180/$E$12,0))","v":0},null,{"$f":"IF(C181=\"p\",G188/100*($G$8+$G$15),IF(C181=\"h\",C180/$E$12,0))","v":0}]
["Momentant metanflöde","Nm3 CH4/h",null,null,{"$f":"$E$8","v":0},null,{"$f":"$G$8+$G$15","v":0}]
["Momentan förlust","%",null,null,{"$f":"E182/$E$8*100","v":{"$error":"#DIV/0!"}},null,{"$f":"G182/($G$8+$G$15)*100","v":{"$error":"#DIV/0!"}}]
["ÅRSVÄRDEN"]
["Årligt utsläpp","Nm3 CH4/år",null,null,{"$f":"C180","v":0},null,{"$f":"C180","v":0}]
["Årligt metanflöde","Nm3 CH4/år",null,null,{"$f":"$E$11","v":0},null,{"$f":"$G$11+$G$17","v":0}]
["Årlig förlust","%",null,null,{"$f":"100*E186/E187","v":{"$error":"#DIV/0!"}},null,{"$f":"100*G186/G187","v":{"$error":"#DIV/0!"}}]
[]
["UTSLÄPP (Nm3/år) 2",{"$f":"Val!C15","v":0}]
["INDATA"]
["Utsläpp","Nm3 CH4/år"]
["RESULTAT","Skalning:",null,null,"RÅGAS",null,"RENGAS"]
["Momentant utsläpp","Nm3 CH4/h",null,null,{"$f":"IF(C193=\"p\",E200/100*$E$8,IF(C193=\"h\",C192/$E$12,0))","v":0},null,{"$f":"IF(C193=\"p\",G200/100*($G$8+$G$15),IF(C193=\"h\",C192/$E$12,0))","v":0}]
["Momentant metanflöde","Nm3 CH4/h",null,null,{"$f":"$E$8","v":0},null,{"$f":"$G$8+$G$15","v":0}]
["Momentan förlust","%",null,null,{"$f":"E194/$E$8*100","v":{"$error":"#DIV/0!"}},null,{"$f":"G194/($G$8+$G$15)*100","v":{"$error":"#DIV/0!"}}]
["ÅRSVÄRDEN"]
["Årligt utsläpp","Nm3 CH4/år",null,null,{"$f":"C192","v":0},null,{"$f":"C192","v":0}]
["Årligt metanflöde","Nm3 CH4/år",null,null,{"$f":"$E$11","v":0},null,{"$f":"$G$11+$G$17","v":0}]
["Årlig förlust","%",null,null,{"$f":"100*E198/E199","v":{"$error":"#DIV/0!"}},null,{"$f":"100*G198/G199","v":{"$error":"#DIV/0!"}}]
[]
["UTSLÄPP (Nm3/h) 1",{"$f":"Val!C16","v":0}]
["INDATA"]
["Utsläpp","Nm3 CH4/h"]
["RESULTAT"]
["Momentant utsläpp","Nm3 CH4/h",{"$f":"C204","v":0},null,"RÅGAS",null,"RENGAS"]
["Momentant metanflöde","Nm3 CH4/h",null,null,{"$f":"$E$8","v":0},null,{"$f":"$G$8+$G$15","v":0}]
["Momentan förlust","%",null,null,{"$f":"C206/$E$8*100","v":{"$error":"#DIV/0!"}},null,{"$f":"C206/($G$8+$G$15)*100","v":{"$error":"#DIV/0!"}}]
["ÅRSVÄRDEN","Skalning:"]
["Årligt utsläpp","Nm3 CH4/år",null,null,{"$f":"IF(C209=\"p\",E208/100*E211,IF(C209=\"h\",C206*$E$12,0))","v":0},null,{"$f":"IF(C209=\"p\",G208/100*G211,IF(C209=\"h\",C206*$E$12,0))","v":0}]
["Årligt metanflöde","Nm3 CH4/år",null,null,{"$f":"$E$11","v":0},null,{"$f":"$G$11+$G$17","v":0}]
["Årlig förlust","%",null,null,{"$f":"100*E210/E211","v":{"$error":"#DIV/0!"}},null,{"$f":"100*G210/G211","v":{"$error":"#DIV/0!"}}]
[]
["UTSLÄPP (Nm3/h) 2",{"$f":"Val!C17","v":0}]
["INDATA"]
["Utsläpp","Nm3 CH4/h"]
["RESULTAT"]
["Momentant utsläpp","Nm3 CH4/h",{"$f":"C216","v":0},null,"RÅGAS",null,"RENGAS"]
["Momentant metanflöde","Nm3 CH4/h",null,null,{"$f":"$E$8","v":0},null,{"$f":"$G$8+$G$15","v":0}]
["Momentan förlust","%",null,null,{"$f":"C218/$E$8*100","v":{"$error":"#DIV/0!"}},null,{"$f":"C218/($G$8+$G$15)*100","v":{"$error":"#DIV/0!"}}]
["ÅRSVÄRDEN","Skalning:"]
["Årligt utsläpp","Nm3 CH4/år",null,null,{"$f":"IF(C221=\"p\",E220/100*E223,IF(C221=\"h\",C218*$E$12,0))","v":0},null,{"$f":"IF(C221=\"p\",G220/100*G223,IF(C221=\"h\",C218*$E$12,0))","v":0}]
["Årligt metanflöde","Nm3 CH4/år",null,null,{"$f":"$E$11","v":0},null,{"$f":"$G$11+$G$17","v":0}]
["Årlig förlust","%",null,null,{"$f":"100*E222/E223","v":{"$error":"#DIV/0!"}},null,{"$f":"100*G222/G223","v":{"$error":"#DIV/0!"}}]
[]
["Uppdatera formeln i E15 och G15 om fler utsläppspunkter läggs till manuellt"]
["Uppdatera formeln i E17 och G17 om fler utsläppspunkter läggs till manuellt"]

{"sheet":"Sid 1","index":2,"n_rows":38,"n_cols":3,"rows_kept":38,"cut":false,"hidden":false,"merged":[]}
[]
[null,"Anläggning"]
[null,"Anläggningsnamn","Exempelanläggning"]
[null,"Adress","Exempelvägen 1"]
[null,"Anläggningstyp","Typ"]
[null,"Huvudman/ägare","Biogas AB"]
[null,"Kontaktperson","Namn Namnsson"]
[null,"Telefon","010 - 123 45 67"]
[null,"Email","namn.namnsson@biogas.se"]
[]
[null,"Utförare av mätning"]
[null,"Företag","Mätföretaget AB"]
[null,"Utförare","Mät Mätsson"]
[null,"Telefon","010 - 999 12 34"]
[null,"Email","mat.matsson@matforetaget.se"]
[]
[null,"Genomförande av mätning"]
[null,"Mätdatum","2016-04-01"]
[null,"Tid","9:00 – 12:30"]
[null,"Väderförhållanden","Uppehåll, svag vind"]
[null,"Omgivningstemperatur","3 – 7 °C"]
[null,"Mätinstrument (metan)","Instrument Tillverkare Modell"]
[null,"Kalibreringsgaser","1000 ppm CH4/luft"]
[null,"Mätinstrument (gasflöde)","Instrument Tillverkare Modell"]
[null,"Kommentar rörande mätning","-"]
[]
[null,"Driftförhållanden vid mätning"]
[null,"Rågasflöde (Nm3/h)",{"$f":"Beräkningar!E6","v":0}]
[null,"Rågas metanhalt (vol-%)",{"$f":"Beräkningar!E7","v":0}]
[null,"Rengasflöde (Nm3/h)",{"$f":"Beräkningar!G6","v":0}]
[null,"Rengas metanhalt (vol-%)",{"$f":"Beräkningar!G7","v":0}]
[null,"Kommentar kring driften","Normal"]
[]
[null,"Data gällande årsproduktion"]
[null,"Behandlad rågas (Nm3/år)",{"$f":"Beräkningar!E9","v":0}]
[null,"Rågas metanhalt (vol-%)",{"$f":"Beräkningar!E10","v":0}]
[null,"Producerad rengas (Nm3/år)",{"$f":"Beräkningar!G9","v":0}]
[null,"Rengas metanhalt (vol-%)",{"$f":"Beräkningar!G10","v":0}]

{"sheet":"Analysinstrument","index":3,"n_rows":25,"n_cols":8,"rows_kept":25,"cut":false,"hidden":false,"merged":[[24,1,25,7],[26,1,27,7],[18,1,18,7],[1,1,1,7],[3,1,3,7],[17,1,17,7],[23,1,23,7],[11,1,11,7],[2,1,2,7],[4,1,5,7],[6,1,7,7],[9,1,10,7],[8,1,8,7]]}
[]
[null,"Identifikation av utsläppsobjekt"]
[null,{"$f":"Val!C7","v":"Fast installerade analysinstrument"}]
[null,"Beskrivning av utsläppsobjekt"]
[null,"Ett litet flöde gas leds kontinuerligt genom anläggningens gasanalysinstrument och vidare till atmosfär."]
[]
[null," X st rågasflöden och X st rengasflöden har identifierats i anläggningen."]
[]
[null,"Beskrivning av mätningens genomförande"]
[null,"Analyspanelens rotametrar har avlästs."]
[]
[null,"Momentant utsläpp och beräknad förlust (Nm3 CH4/h)"]
[null,"Beräkning sker på momentana (avlästa) värden av metanhalt."]
[null,"Qutsläpp","l/h",{"$f":"Beräkningar!C25","v":0}]
[null,"Momentant utsläpp","Nm3 CH4/h",{"$f":"Beräkningar!C26","v":0}]
[null,"Momentant metanflöde","Nm3 CH4/h",null,null,{"$f":"Beräkningar!E27","v":0},null,{"$f":"Beräkningar!G27","v":0}]
[null,"Momentan förlust","%",null,null,{"$f":"Beräkningar!E28","v":{"$error":"#DIV/0!"}},null,{"$f":"Beräkningar!G28","v":{"$error":"#DIV/0!"}}]
[null,"Beräknad kvantifiering av årliga utsläpp (Nm3 CH4/år)"]
[null,"Beräkning sker på årsmedelvärden av metanhalt."]
[]
[null,"Årligt utsläpp","Nm3 CH4/år",{"$f":"Beräkningar!C30","v":0}]
[null,"Årligt metanflöde","Nm3 CH4/år",null,null,{"$f":"Beräkningar!E31","v":0},null,{"$f":"Beräkningar!G31","v":0}]
[null,"Årlig förlust","%",null,null,{"$f":"Beräkningar!E32","v":{"$error":"#DIV/0!"}},null,{"$f":"Beräkningar!G32","v":{"$error":"#DIV/0!"}}]
[null,"Förslag på åtgärd"]
[null,"Se till att flödena inte är högre än nödvändigt."]

{"sheet":"Ventilation 1","index":4,"n_rows":25,"n_cols":8,"rows_kept":25,"cut":false,"hidden":false,"merged":[[26,1,27,7],[1,1,1,7],[2,1,2,7],[3,1,3,7],[4,1,5,7],[6,1,7,7],[8,1,8,7],[9,1,9,7],[10,1,10,7],[11,1,11,7],[17,1,17,7],[18,1,18,7],[23,1,23,7],[24,1,25,7]]}
[]
[null,"Identifikation av utsläppsobjekt"]
[null,{"$f":"Val!C8","v":0}]
[null,"Beskrivning av utsläppsobjekt"]
[null,"NNN"]
[]
[]
[]
[null,"Beskrivning av mätningens genomförande"]
[null,"Metanhalt är uppmätt med FID under XX minuter."]
[null,"Flödet är uppmätt med pitotrör varmtrådsgivare."]
[null,"Momentant utsläpp och beräknad förlust (Nm3 CH4/h)"]
[null,"CH4(utsläpp)","ppm",{"$f":"Beräkningar!C36","v":0}]
[null,"Qutsläpp","Nm3/h",{"$f":"Beräkningar!C49","v":0}]
[null,"Momentant utsläpp","Nm3 CH4/h",{"$f":"Beräkningar!C50","v":0}]
[null,"Momentant metanflöde","Nm3 CH4/h",null,null,{"$f":"Beräkningar!E51","v":0},null,{"$f":"Beräkningar!G51","v":0}]
[null,"Momentan förlust","%",null,null,{"$f":"Beräkningar!E52","v":{"$error":"#DIV/0!"}},null,{"$f":"Beräkningar!G56","v":{"$error":"#DIV/0!"}}]
[null,"Beräknad kvantifiering av årliga utsläpp (Nm3 CH4/år)"]
[null,{"$f":"IF(Beräkningar!C53=\"p\",\"Utsläppet antas variera relativt produktionen i anläggningen\",IF(Beräkningar!C53=\"h\",\"Utsläppet antas vara konstant över årets alla drifttimmar\",\"Görs ej\"))","v":"Görs ej"}]
[]
[null,"Årligt utsläpp","Nm3 CH4/år",null,null,{"$f":"Beräkningar!E54","v":0},null,{"$f":"Beräkningar!G54","v":0}]
[null,"Årligt metanflöde","Nm3 CH4/år",null,null,{"$f":"Beräkningar!E55","v":0},null,{"$f":"Beräkningar!G55","v":0}]
[null,"Årlig förlust","%",null,null,{"$f":"Beräkningar!E56","v":{"$error":"#DIV/0!"}},null,{"$f":"Beräkningar!G56","v":{"$error":"#DIV/0!"}}]
[null,"Förslag på åtgärd"]
[null,"Läcksökning och åtgärdande av funna läckor."]

{"sheet":"Ventilation 2","index":5,"n_rows":25,"n_cols":8,"rows_kept":25,"cut":false,"hidden":false,"merged":[[8,1,8,7],[1,1,1,7],[2,1,2,7],[3,1,3,7],[4,1,5,7],[6,1,7,7],[24,1,25,7],[26,1,27,7],[9,1,9,7],[10,1,10,7],[11,1,11,7],[17,1,17,7],[18,1,18,7],[23,1,23,7]]}
[]
[null,"Identifikation av utsläppsobjekt"]
[null,{"$f":"Val!C9","v":0}]
[null,"Beskrivning av utsläppsobjekt"]
[null,"NNN"]
[]
[]
[]
[null,"Beskrivning av mätningens genomförande"]
[null,"Metanhalt är uppmätt med FID under XX minuter."]
[null,"Flödet är uppmätt med pitotrör varmtrådsgivare."]
[null,"Momentant utsläpp och beräknad förlust (Nm3 CH4/h)"]
[null,"CH4(utsläpp)","ppm",{"$f":"Beräkningar!C60","v":0}]
[null,"Qutsläpp","Nm3/h",{"$f":"Beräkningar!C73","v":0}]
[null,"Momentant utsläpp","Nm3 CH4/h",{"$f":"Beräkningar!C74","v":0}]
[null,"Momentant metanflöde","Nm3 CH4/h",null,null,{"$f":"Beräkningar!E75","v":0},null,{"$f":"Beräkningar!G75","v":0}]
[null,"Momentan förlust","%",null,null,{"$f":"Beräkningar!E76","v":{"$error":"#DIV/0!"}},null,{"$f":"Beräkningar!G76","v":{"$error":"#DIV/0!"}}]
[null,"Beräknad kvantifiering av årliga utsläpp (Nm3 CH4/år)"]
[null,{"$f":"IF(Beräkningar!C77=\"p\",\"Utsläppet antas variera relativt produktionen i anläggningen\",IF(Beräkningar!C77=\"h\",\"Utsläppet antas vara konstant över årets alla drifttimmar\",\"Görs ej\"))","v":"Görs ej"}]
[]
[null,"Årligt utsläpp","Nm3 CH4/år",null,null,{"$f":"Beräkningar!E78","v":0},null,{"$f":"Beräkningar!G78","v":0}]
[null,"Årligt metanflöde","Nm3 CH4/år",null,null,{"$f":"Beräkningar!E79","v":0},null,{"$f":"Beräkningar!G79","v":0}]
[null,"Årlig förlust","%",null,null,{"$f":"Beräkningar!E80","v":{"$error":"#DIV/0!"}},null,{"$f":"Beräkningar!G80","v":{"$error":"#DIV/0!"}}]
[null,"Förslag på åtgärd"]
[null,"Läcksökning och åtgärdande av funna läckor."]

{"sheet":"Ventilation 3","index":6,"n_rows":25,"n_cols":8,"rows_kept":25,"cut":false,"hidden":false,"merged":[[8,1,8,7],[1,1,1,7],[2,1,2,7],[3,1,3,7],[4,1,5,7],[6,1,7,7],[24,1,25,7],[26,1,27,7],[9,1,9,7],[10,1,10,7],[11,1,11,7],[17,1,17,7],[18,1,18,7],[23,1,23,7]]}
[]
[null,"Identifikation av utsläppsobjekt"]
[null,{"$f":"Val!C10","v":0}]
[null,"Beskrivning av utsläppsobjekt"]
[null,"NNN"]
[]
[]
[]
[null,"Beskrivning av mätningens genomförande"]
[null,"Metanhalt är uppmätt med FID under XX minuter."]
[null,"Flödet är uppmätt med pitotrör varmtrådsgivare."]
[null,"Momentant utsläpp och beräknad förlust (Nm3 CH4/h)"]
[null,"CH4(utsläpp)","ppm",{"$f":"Beräkningar!C84","v":0}]
[null,"Qutsläpp","Nm3/h",{"$f":"Beräkningar!C97","v":0}]
[null,"Momentant utsläpp","Nm3 CH4/h",{"$f":"Beräkningar!C98","v":0}]
[null,"Momentant metanflöde","Nm3 CH4/h",null,null,{"$f":"Beräkningar!E99","v":0},null,{"$f":"Beräkningar!G99","v":0}]
[null,"Momentan förlust","%",null,null,{"$f":"Beräkningar!E100","v":{"$error":"#DIV/0!"}},null,{"$f":"Beräkningar!G100","v":{"$error":"#DIV/0!"}}]
[null,"Beräknad kvantifiering av årliga utsläpp (Nm3 CH4/år)"]
[null,{"$f":"IF(Beräkningar!C101=\"p\",\"Utsläppet antas variera relativt produktionen i anläggningen\",IF(Beräkningar!C101=\"h\",\"Utsläppet antas vara konstant över årets alla drifttimmar\",\"Görs ej\"))","v":"Görs ej"}]
[]
[null,"Årligt utsläpp","Nm3 CH4/år",null,null,{"$f":"Beräkningar!E102","v":0},null,{"$f":"Beräkningar!G102","v":0}]
[null,"Årligt metanflöde","Nm3 CH4/år",null,null,{"$f":"Beräkningar!E103","v":0},null,{"$f":"Beräkningar!G103","v":0}]
[null,"Årlig förlust","%",null,null,{"$f":"Beräkningar!E104","v":{"$error":"#DIV/0!"}},null,{"$f":"Beräkningar!G104","v":{"$error":"#DIV/0!"}}]
[null,"Förslag på åtgärd"]
[null,"Läcksökning och åtgärdande av funna läckor."]

{"sheet":"Ventilation 4","index":7,"n_rows":25,"n_cols":8,"rows_kept":25,"cut":false,"hidden":false,"merged":[[8,1,8,7],[1,1,1,7],[2,1,2,7],[3,1,3,7],[4,1,5,7],[6,1,7,7],[24,1,25,7],[26,1,27,7],[9,1,9,7],[10,1,10,7],[11,1,11,7],[17,1,17,7],[18,1,18,7],[23,1,23,7]]}
[]
[null,"Identifikation av utsläppsobjekt"]
[null,{"$f":"Val!C11","v":0}]
[null,"Beskrivning av utsläppsobjekt"]
[null,"NNN"]
[]
[]
[]
[null,"Beskrivning av mätningens genomförande"]
[null,"Metanhalt är uppmätt med FID under XX minuter."]
[null,"Flödet är uppmätt med pitotrör varmtrådsgivare."]
[null,"Momentant utsläpp och beräknad förlust (Nm3 CH4/h)"]
[null,"CH4(utsläpp)","ppm",{"$f":"Beräkningar!C108","v":0}]
[null,"Qutsläpp","Nm3/h",{"$f":"Beräkningar!C121","v":0}]
[null,"Momentant utsläpp","Nm3 CH4/h",{"$f":"Beräkningar!C122","v":0}]
[null,"Momentant metanflöde","Nm3 CH4/h",null,null,{"$f":"Beräkningar!E123","v":0},null,{"$f":"Beräkningar!G123","v":0}]
[null,"Momentan förlust","%",null,null,{"$f":"Beräkningar!E124","v":{"$error":"#DIV/0!"}},null,{"$f":"Beräkningar!G124","v":{"$error":"#DIV/0!"}}]
[null,"Beräknad kvantifiering av årliga utsläpp (Nm3 CH4/år)"]
[null,{"$f":"IF(Beräkningar!C125=\"p\",\"Utsläppet antas variera relativt produktionen i anläggningen\",IF(Beräkningar!C125=\"h\",\"Utsläppet antas vara konstant över årets alla drifttimmar\",\"Görs ej\"))","v":"Görs ej"}]
[]
[null,"Årligt utsläpp","Nm3 CH4/år",null,null,{"$f":"Beräkningar!E126","v":0},null,{"$f":"Beräkningar!G126","v":0}]
[null,"Årligt metanflöde","Nm3 CH4/år",null,null,{"$f":"Beräkningar!E127","v":0},null,{"$f":"Beräkningar!G127","v":0}]
[null,"Årlig förlust","%",null,null,{"$f":"Beräkningar!E128","v":{"$error":"#DIV/0!"}},null,{"$f":"Beräkningar!G128","v":{"$error":"#DIV/0!"}}]
[null,"Förslag på åtgärd"]
[null,"Läcksökning och åtgärdande av funna läckor."]

{"sheet":"Ventilation 5","index":8,"n_rows":25,"n_cols":8,"rows_kept":25,"cut":false,"hidden":false,"merged":[[8,1,8,7],[1,1,1,7],[2,1,2,7],[3,1,3,7],[4,1,5,7],[6,1,7,7],[24,1,25,7],[26,1,27,7],[9,1,9,7],[10,1,10,7],[11,1,11,7],[17,1,17,7],[18,1,18,7],[23,1,23,7]]}
[]
[null,"Identifikation av utsläppsobjekt"]
[null,{"$f":"Val!C12","v":0}]
[null,"Beskrivning av utsläppsobjekt"]
[null,"NNN"]
[]
[]
[]
[null,"Beskrivning av mätningens genomförande"]
[null,"Metanhalt är uppmätt med FID under XX minuter."]
[null,"Flödet är uppmätt med pitotrör varmtrådsgivare."]
[null,"Momentant utsläpp och beräknad förlust (Nm3 CH4/h)"]
[null,"CH4(utsläpp)","ppm",{"$f":"Beräkningar!C132","v":0}]
[null,"Qutsläpp","Nm3/h",{"$f":"Beräkningar!C145","v":0}]
[null,"Momentant utsläpp","Nm3 CH4/h",{"$f":"Beräkningar!C146","v":0}]
[null,"Momentant metanflöde","Nm3 CH4/h",null,null,{"$f":"Beräkningar!E147","v":0},null,{"$f":"Beräkningar!G147","v":0}]
[null,"Momentan förlust","%",null,null,{"$f":"Beräkningar!E148","v":{"$error":"#DIV/0!"}},null,{"$f":"Beräkningar!G148","v":{"$error":"#DIV/0!"}}]
[null,"Beräknad kvantifiering av årliga utsläpp (Nm3 CH4/år)"]
[null,{"$f":"IF(Beräkningar!C149=\"p\",\"Utsläppet antas variera relativt produktionen i anläggningen\",IF(Beräkningar!C149=\"h\",\"Utsläppet antas vara konstant över årets alla drifttimmar\",\"Görs ej\"))","v":"Görs ej"}]
[]
[null,"Årligt utsläpp","Nm3 CH4/år",null,null,{"$f":"Beräkningar!E150","v":0},null,{"$f":"Beräkningar!G150","v":0}]
[null,"Årligt metanflöde","Nm3 CH4/år",null,null,{"$f":"Beräkningar!E151","v":0},null,{"$f":"Beräkningar!G151","v":0}]
[null,"Årlig förlust","%",null,null,{"$f":"Beräkningar!E152","v":{"$error":"#DIV/0!"}},null,{"$f":"Beräkningar!G152","v":{"$error":"#DIV/0!"}}]
[null,"Förslag på åtgärd"]
[null,"Läcksökning och åtgärdande av funna läckor."]

{"sheet":"Restgas","index":9,"n_rows":25,"n_cols":8,"rows_kept":25,"cut":false,"hidden":false,"merged":[[8,1,8,7],[1,1,1,7],[2,1,2,7],[3,1,3,7],[4,1,5,7],[6,1,7,7],[24,1,25,7],[26,1,27,7],[9,1,9,7],[10,1,10,7],[11,1,11,7],[17,1,17,7],[18,1,18,7],[23,1,23,7]]}
[]
[null,"Identifikation av utsläppsobjekt"]
[null,{"$f":"Val!C13","v":"Restgas"}]
[null,"Beskrivning av utsläppsobjekt"]
[null,"NNN"]
[]
[]
[]
[null,"Beskrivning av mätningens genomförande"]
[null,"Metanhalt är uppmätt med FID under XX minuter."]
[null,{"$f":"IF(Beräkningar!C154=\"u\",\"Flödet är uppmätt.\",IF(Beräkningar!C154=\"b\",\"Flödet beräknas utifrån anläggningens angivna rengasflöde och metanhalter.\",\"-\"))","v":"-"}]
[null,"Momentant utsläpp och beräknad förlust (Nm3 CH4/h)"]
[null,"CH4(utsläpp)","ppm",{"$f":"Beräkningar!C156","v":0}]
[null,"Qutsläpp","Nm3/h",{"$f":"Beräkningar!C169","v":0}]
[null,"Momentant utsläpp","Nm3 CH4/h",{"$f":"Beräkningar!C170","v":0}]
[null,"Momentant metanflöde","Nm3 CH4/h",null,null,{"$f":"Beräkningar!E171","v":0},null,{"$f":"Beräkningar!G171","v":0}]
[null,"Momentan förlust","%",null,null,{"$f":"Beräkningar!E172","v":{"$error":"#DIV/0!"}},null,{"$f":"Beräkningar!G172","v":{"$error":"#DIV/0!"}}]
[null,"Beräknad kvantifiering av årliga utsläpp (Nm3 CH4/år)"]
[null,{"$f":"IF(Beräkningar!C173=\"p\",\"Utsläppet antas variera relativt produktionen i anläggningen\",IF(Beräkningar!C173=\"h\",\"Utsläppet antas vara konstant över årets alla drifttimmar\",\"Görs ej\"))","v":"Görs ej"}]
[]
[null,"Årligt utsläpp","Nm3 CH4/år",null,null,{"$f":"Beräkningar!E174","v":0},null,{"$f":"Beräkningar!G174","v":0}]
[null,"Årligt metanflöde","Nm3 CH4/år",null,null,{"$f":"Beräkningar!E175","v":0},null,{"$f":"Beräkningar!G175","v":0}]
[null,"Årlig förlust","%",null,null,{"$f":"Beräkningar!E176","v":{"$error":"#DIV/0!"}},null,{"$f":"Beräkningar!G176","v":{"$error":"#DIV/0!"}}]
[null,"Förslag på åtgärd"]
[null,"Intrimning av processen för att minska metanförlusterna."]

{"sheet":"Utsläpp år 1","index":10,"n_rows":25,"n_cols":8,"rows_kept":25,"cut":false,"hidden":false,"merged":[[8,1,8,7],[1,1,1,7],[2,1,2,7],[3,1,3,7],[4,1,5,7],[6,1,7,7],[24,1,25,7],[26,1,27,7],[9,1,9,7],[10,1,10,7],[11,1,11,7],[17,1,17,7],[18,1,18,7],[23,1,23,7]]}
[]
[null,"Identifikation av utsläppsobjekt"]
[null,{"$f":"Val!C14","v":0}]
[null,"Beskrivning av utsläppsobjekt"]
[null,"NNN"]
[]
[]
[]
[null,"Beskrivning av mätningens genomförande"]
[null,"NNN"]
[]
[null,"Momentant utsläpp och beräknad förlust (Nm3 CH4/h)"]
[null,{"$f":"IF(Beräkningar!C181=\"p\",\"Utsläppet antas variera relativt produktionen i anläggningen\",IF(Beräkningar!C181=\"h\",\"Utsläppet antas vara konstant över årets alla drifttimmar\",\"Görs ej\"))","v":"Görs ej"}]
[]
[null,"Momentant utsläpp","Nm3 CH4/h",null,null,{"$f":"Beräkningar!E182","v":0},null,{"$f":"Beräkningar!G182","v":0}]
[null,"Momentant metanflöde","Nm3 CH4/h",null,null,{"$f":"Beräkningar!E183","v":0},null,{"$f":"Beräkningar!G183","v":0}]
[null,"Momentan förlust","%",null,null,{"$f":"Beräkningar!E184","v":{"$error":"#DIV/0!"}},null,{"$f":"Beräkningar!G184","v":{"$error":"#DIV/0!"}}]
[null,"Beräknad kvantifiering av årliga utsläpp (Nm3 CH4/år)"]
[]
[]
[null,"Årligt utsläpp","Nm3 CH4/år",null,null,{"$f":"Beräkningar!E186","v":0},null,{"$f":"Beräkningar!G186","v":0}]
[null,"Årligt metanflöde","Nm3 CH4/år",null,null,{"$f":"Beräkningar!E187","v":0},null,{"$f":"Beräkningar!G187","v":0}]
[null,"Årlig förlust","%",null,null,{"$f":"Beräkningar!E188","v":{"$error":"#DIV/0!"}},null,{"$f":"Beräkningar!G188","v":{"$error":"#DIV/0!"}}]
[null,"Förslag på åtgärd"]
[null,"NNN"]

{"sheet":"Utsläpp år 2","index":11,"n_rows":25,"n_cols":8,"rows_kept":25,"cut":false,"hidden":false,"merged":[[8,1,8,7],[1,1,1,7],[2,1,2,7],[3,1,3,7],[4,1,5,7],[6,1,7,7],[24,1,25,7],[26,1,27,7],[9,1,9,7],[10,1,10,7],[11,1,11,7],[17,1,17,7],[18,1,18,7],[23,1,23,7]]}
[]
[null,"Identifikation av utsläppsobjekt"]
[null,{"$f":"Val!C15","v":0}]
[null,"Beskrivning av utsläppsobjekt"]
[null,"NNN"]
[]
[]
[]
[null,"Beskrivning av mätningens genomförande"]
[null,"NNN"]
[]
[null,"Momentant utsläpp och beräknad förlust (Nm3 CH4/h)"]
[null,{"$f":"IF(Beräkningar!C193=\"p\",\"Utsläppet antas variera relativt produktionen i anläggningen\",IF(Beräkningar!C193=\"h\",\"Utsläppet antas vara konstant över årets alla drifttimmar\",\"Görs ej\"))","v":"Görs ej"}]
[]
[null,"Momentant utsläpp","Nm3 CH4/h",null,null,{"$f":"Beräkningar!E194","v":0},null,{"$f":"Beräkningar!G194","v":0}]
[null,"Momentant metanflöde","Nm3 CH4/h",null,null,{"$f":"Beräkningar!E195","v":0},null,{"$f":"Beräkningar!G195","v":0}]
[null,"Momentan förlust","%",null,null,{"$f":"Beräkningar!E196","v":{"$error":"#DIV/0!"}},null,{"$f":"Beräkningar!G196","v":{"$error":"#DIV/0!"}}]
[null,"Beräknad kvantifiering av årliga utsläpp (Nm3 CH4/år)"]
[]
[]
[null,"Årligt utsläpp","Nm3 CH4/år",null,null,{"$f":"Beräkningar!E198","v":0},null,{"$f":"Beräkningar!G198","v":0}]
[null,"Årligt metanflöde","Nm3 CH4/år",null,null,{"$f":"Beräkningar!E199","v":0},null,{"$f":"Beräkningar!G199","v":0}]
[null,"Årlig förlust","%",null,null,{"$f":"Beräkningar!E200","v":{"$error":"#DIV/0!"}},null,{"$f":"Beräkningar!G200","v":{"$error":"#DIV/0!"}}]
[null,"Förslag på åtgärd"]
[null,"NNN"]

{"sheet":"Utsläpp h 1","index":12,"n_rows":25,"n_cols":8,"rows_kept":25,"cut":false,"hidden":false,"merged":[[8,1,8,7],[1,1,1,7],[2,1,2,7],[3,1,3,7],[4,1,5,7],[6,1,7,7],[24,1,25,7],[26,1,27,7],[9,1,9,7],[10,1,10,7],[11,1,11,7],[17,1,17,7],[18,1,18,7],[23,1,23,7]]}
[]
[null,"Identifikation av utsläppsobjekt"]
[null,{"$f":"Val!C16","v":0}]
[null,"Beskrivning av utsläppsobjekt"]
[null,"NNN"]
[]
[]
[]
[null,"Beskrivning av mätningens genomförande"]
[null,"NNN"]
[]
[null,"Momentant utsläpp och beräknad förlust (Nm3 CH4/h)"]
[]
[]
[null,"Momentant utsläpp","Nm3 CH4/h",{"$f":"Beräkningar!C206","v":0}]
[null,"Momentant metanflöde","Nm3 CH4/h",null,null,{"$f":"Beräkningar!E207","v":0},null,{"$f":"Beräkningar!G207","v":0}]
[null,"Momentan förlust","%",null,null,{"$f":"Beräkningar!E208","v":{"$error":"#DIV/0!"}},null,{"$f":"Beräkningar!G208","v":{"$error":"#DIV/0!"}}]
[null,"Beräknad kvantifiering av årliga utsläpp (Nm3 CH4/år)"]
[null,{"$f":"IF(Beräkningar!C209=\"p\",\"Utsläppet antas variera relativt produktionen i anläggningen\",IF(Beräkningar!C209=\"h\",\"Utsläppet antas vara konstant över årets alla drifttimmar\",\"Görs ej\"))","v":"Görs ej"}]
[]
[null,"Årligt utsläpp","Nm3 CH4/år",null,null,{"$f":"Beräkningar!E210","v":0},null,{"$f":"Beräkningar!G210","v":0}]
[null,"Årligt metanflöde","Nm3 CH4/år",null,null,{"$f":"Beräkningar!E211","v":0},null,{"$f":"Beräkningar!G211","v":0}]
[null,"Årlig förlust","%",null,null,{"$f":"Beräkningar!E212","v":{"$error":"#DIV/0!"}},null,{"$f":"Beräkningar!G212","v":{"$error":"#DIV/0!"}}]
[null,"Förslag på åtgärd"]
[null,"NNN"]

{"sheet":"Utsläpp h 2","index":13,"n_rows":25,"n_cols":8,"rows_kept":25,"cut":false,"hidden":false,"merged":[[8,1,8,7],[1,1,1,7],[2,1,2,7],[3,1,3,7],[4,1,5,7],[6,1,7,7],[24,1,25,7],[26,1,27,7],[9,1,9,7],[10,1,10,7],[11,1,11,7],[17,1,17,7],[18,1,18,7],[23,1,23,7]]}
[]
[null,"Identifikation av utsläppsobjekt"]
[null,{"$f":"Val!C17","v":0}]
[null,"Beskrivning av utsläppsobjekt"]
[null,"NNN"]
[]
[]
[]
[null,"Beskrivning av mätningens genomförande"]
[null,"NNN"]
[]
[null,"Momentant utsläpp och beräknad förlust (Nm3 CH4/h)"]
[]
[]
[null,"Momentant utsläpp","Nm3 CH4/h",{"$f":"Beräkningar!C218","v":0}]
[null,"Momentant metanflöde","Nm3 CH4/h",null,null,{"$f":"Beräkningar!E219","v":0},null,{"$f":"Beräkningar!G219","v":0}]
[null,"Momentan förlust","%",null,null,{"$f":"Beräkningar!E220","v":{"$error":"#DIV/0!"}},null,{"$f":"Beräkningar!G220","v":{"$error":"#DIV/0!"}}]
[null,"Beräknad kvantifiering av årliga utsläpp (Nm3 CH4/år)"]
[null,{"$f":"IF(Beräkningar!C221=\"p\",\"Utsläppet antas variera relativt produktionen i anläggningen\",IF(Beräkningar!C221=\"h\",\"Utsläppet antas vara konstant över årets alla drifttimmar\",\"Görs ej\"))","v":"Görs ej"}]
[]
[null,"Årligt utsläpp","Nm3 CH4/år",null,null,{"$f":"Beräkningar!E222","v":0},null,{"$f":"Beräkningar!G222","v":0}]
[null,"Årligt metanflöde","Nm3 CH4/år",null,null,{"$f":"Beräkningar!E223","v":0},null,{"$f":"Beräkningar!G223","v":0}]
[null,"Årlig förlust","%",null,null,{"$f":"Beräkningar!E224","v":{"$error":"#DIV/0!"}},null,{"$f":"Beräkningar!G224","v":{"$error":"#DIV/0!"}}]
[null,"Förslag på åtgärd"]
[null,"NNN"]

{"sheet":"Bilaga","index":14,"n_rows":26,"n_cols":3,"rows_kept":26,"cut":false,"hidden":false,"merged":[]}
[]
[null,"Årsutsläpp"]
[null,"Uppmätta utsläppsmängder gäller vid mätningens genomförande. Två olika principer används för att skala"]
[null,"upp de momentant uppmätta utsläppen till att gälla årliga utsläpp:"]
[]
[null,"Princip 1","Relativt produktionen i anläggningen"]
[]
[null,null,"Den momentana förlusten i procent beräknas relativt den aktuella produktionen"]
[null,null,"i anläggningen vid mätning. Den momentanta förlusten antas vara samma som"]
[null,null,"den årliga förlusten, i procent. För att beräkna årliga utsläppsmängder tas den"]
[null,null,"bestämda förlusten gånger den årliga produktionen."]
[]
[null,"Princip 2","Konstant över årets alla drifttimmar"]
[]
[null,null,"Det uppmätta utsläppet (Nm3/h) antas gälla under årets alla drifttimmar. "]
[null,null,"Utsläppet antas ej vara beroende av produktionen i anläggningen."]
[]
[null,"Tillämpad princip anges i respektive resultatsammanställning i rapporten."]
[]
[null,"Mätosäkerhet"]
[null,"Mätosäkerheterna varierar till stor grad mellan olika utsläppspunkter och anläggningar och är bland annat"]
[null,"beroende av raksträckor vid mätpunkterna, flödesprofilen, analysinstrumenten, kalibrergaser, interferenser"]
[null,"med andra ämnen etc. En stor osäkerhetskälla är också den tidsmässiga variationen i utsläpp i respektive"]
[null,"mätpunkt."]
[]
[null,"Specifika kommentarer kring den aktuella mätningen"]

{"sheet":"EgMet protokoll","index":15,"n_rows":29,"n_cols":4,"rows_kept":29,"cut":false,"hidden":false,"merged":[[21,1,21,2],[22,1,22,2],[23,1,23,2],[24,1,24,2],[25,1,25,2],[29,1,29,3],[7,1,7,2],[9,0,10,0],[9,1,9,2],[10,1,10,2],[28,1,28,3],[11,1,11,2],[12,1,12,2],[13,1,13,2],[14,1,14,2],[15,1,15,2],[16,1,16,2],[17,1,17,2],[18,1,18,2],[19,1,19,2],[20,1,20,2],[2,5,2,6],[6,1,6,2],[2,1,2,2],[3,1,3,2],[5,1,5,2],[29,6,29,8],[28,6,28,8],[7,5,7,6],[6,5,6,6],[5,5,5,6]]}
["Egenkontroll metanemissioner"]
[]
["Kvantifieringsprotokoll","Anläggningsnamn:",null,{"$f":"'Sid 1'!C3","v":"Exempelanläggning"}]
["Uppgraderingsanläggning","Uppgraderingsteknik:",null,{"$f":"'Sid 1'!C5","v":"Typ"}]
[null,null,"Mätdatum:",{"$f":"'Sid 1'!C18","v":"2016-04-01"}]
[null,"Kontaktperson:",null,{"$f":"'Sid 1'!C7","v":"Namn Namnsson"}]
[null,"Telefon:",null,{"$f":"'Sid 1'!C8","v":"010 - 123 45 67"}]
[null,"E-post:",null,{"$f":"'Sid 1'!C9","v":"namn.namnsson@biogas.se"}]
[]
["1. Utsläppsobjekt","2. Kvantifiering av utsläpp",null,"3. Planerad åtgärd"]
[null,"CH4 Nm3/år"]
[{"$f":"Val!C7","v":"Fast installerade analysinstrument"},{"$f":"IF(Val!$C7<>\"\",Beräkningar!C30,\"\")","v":0}]
[{"$f":"Val!C8","v":0},{"$f":"IF(Val!$C8<>\"\",Beräkningar!G54,\"\")","v":""}]
[{"$f":"Val!C9","v":0},{"$f":"IF(Val!$C9<>\"\",Beräkningar!G78,\"\")","v":""}]
[{"$f":"Val!C10","v":0},{"$f":"IF(Val!$C10<>\"\",Beräkningar!G102,\"\")","v":""}]
[{"$f":"Val!C11","v":0},{"$f":"IF(Val!$C11<>\"\",Beräkningar!G126,\"\")","v":""}]
[{"$f":"Val!C12","v":0},{"$f":"IF(Val!$C12<>\"\",Beräkningar!G150,\"\")","v":""}]
[{"$f":"Val!C13","v":"Restgas"},{"$f":"IF(Val!$C13<>\"\",Beräkningar!G174,\"\")","v":0}]
[{"$f":"Val!C14","v":0},{"$f":"IF(Val!$C14<>\"\",Beräkningar!G186,\"\")","v":""}]
[{"$f":"Val!C15","v":0},{"$f":"IF(Val!$C15<>\"\",Beräkningar!G198,\"\")","v":""}]
[{"$f":"Val!C16","v":0},{"$f":"IF(Val!$C16<>\"\",Beräkningar!G210,\"\")","v":""}]
[{"$f":"Val!C17","v":0},{"$f":"IF(Val!$C17<>\"\",Beräkningar!G222,\"\")","v":""}]
["Summa utsläpp CH4 (Nm3/år)",{"$f":"SUM(B12:B22)","v":0}]
["Totalt metanflöde i anläggning (Nm3/år)",{"$f":"Beräkningar!G11+Beräkningar!G17","v":0}]
["Metanförlust (%)",{"$f":"(B23/B24)*100","v":{"$error":"#DIV/0!"}}]
["Mål metanförlust (%)"]
[]
["Härmed intygas att kvantifiering enligt föreskrivna riktlinjer i Frivilligt åtagande har ägt rum"]
["Datum","Namnteckning"]